[Event "Betsys MČR v online bleskovém šachu 2021"]
[Site "Chess.com"]
[Date "2021.04.17"]
[Round "10"]
[White "Chessillusion213"]
[Black "clarissamcclellan"]
[Result "1-0"]
[WhiteElo "2146"]
[BlackElo "1828"]
[TimeControl "180+1"]
[EndTime "10:41:15 PDT"]
[Termination "Uživatel Chessillusion213 zvítězil na čas"]

1. d4 {[%clk 0:03:00.9]} 1... d5 {[%clk 0:02:50.3]} 2. c4 {[%clk 0:03:00.3]}
2... e6 {[%clk 0:02:48]} 3. Nf3 {[%clk 0:02:59.9]} 3... Nf6 {[%clk 0:02:46.9]}
4. g3 {[%clk 0:02:57.9]} 4... Bb4+ {[%clk 0:02:41.3]} 5. Bd2 {[%clk 0:02:57]}
5... Bd6 {[%clk 0:02:41.2]} 6. Bg2 {[%clk 0:02:56.5]} 6... O-O {[%clk
0:02:29.5]} 7. O-O {[%clk 0:02:55.8]} 7... c6 {[%clk 0:02:28.9]} 8. Nc3 {[%clk
0:02:54.7]} 8... Nbd7 {[%clk 0:02:27.7]} 9. Qc2 {[%clk 0:02:52]} 9... b6 {[%clk
0:02:16.4]} 10. e4 {[%clk 0:02:49.5]} 10... Be7 {[%clk 0:02:13.7]} 11. e5 {[%clk
0:02:42.8]} 11... Ne8 {[%clk 0:02:11.2]} 12. Rfd1 {[%clk 0:02:42.1]} 12... Bb7
{[%clk 0:02:04.5]} 13. Rac1 {[%clk 0:02:40.1]} 13... f5 {[%clk 0:02:00.5]} 14.
exf6 {[%clk 0:02:35.4]} 14... Nexf6 {[%clk 0:01:59.4]} 15. Re1 {[%clk
0:02:32.9]} 15... dxc4 {[%clk 0:01:44.6]} 16. Rxe6 {[%clk 0:02:25.5]} 16... Nd5
{[%clk 0:01:44]} 17. Nxd5 {[%clk 0:02:08.4]} 17... cxd5 {[%clk 0:01:39.8]} 18.
Rce1 {[%clk 0:02:08]} 18... Bf6 {[%clk 0:01:38.5]} 19. Bb4 {[%clk 0:01:54.8]}
19... Qc7 {[%clk 0:01:17.6]} 20. Bxf8 {[%clk 0:01:53]} 20... Rxf8 {[%clk
0:01:17.4]} 21. Qe2 {[%clk 0:01:39]} 21... b5 {[%clk 0:01:12.3]} 22. Re8 {[%clk
0:01:38.4]} 22... Qd6 {[%clk 0:01:05.6]} 23. Bh3 {[%clk 0:01:28.6]} 23... Rxe8
{[%clk 0:01:02.2]} 24. Qxe8+ {[%clk 0:01:27.4]} 24... Nf8 {[%clk 0:01:02]} 25.
Ne5 {[%clk 0:01:17.8]} 25... Qe7 {[%clk 0:00:50.4]} 26. Qxe7 {[%clk 0:01:02.6]}
26... Bxe7 {[%clk 0:00:50.2]} 27. Nd7 {[%clk 0:01:01.8]} 27... Kf7 {[%clk
0:00:34.7]} 28. Ne5+ {[%clk 0:00:50.8]} 28... Kg8 {[%clk 0:00:28.3]} 29. a4
{[%clk 0:00:44.1]} 29... b4 {[%clk 0:00:22.6]} 30. Bg2 {[%clk 0:00:41.8]} 30...
Bf6 {[%clk 0:00:17.4]} 31. Rd1 {[%clk 0:00:34.3]} 31... Ne6 {[%clk 0:00:16.6]}
32. Nxc4 {[%clk 0:00:26.2]} 32... Nxd4 {[%clk 0:00:16]} 33. Ne3 {[%clk
0:00:21.8]} 33... Ne2+ {[%clk 0:00:14.1]} 34. Kf1 {[%clk 0:00:20.4]} 34... Ba6
{[%clk 0:00:12.9]} 35. Bxd5+ {[%clk 0:00:20.1]} 35... Kf8 {[%clk 0:00:10.1]} 36.
Nc4 {[%clk 0:00:19.3]} 36... Nd4 {[%clk 0:00:05.2]} 37. Kg2 {[%clk 0:00:13.3]}
37... Nb3 {[%clk 0:00:05.1]} 38. Re1 {[%clk 0:00:12.2]} 38... Nc5 {[%clk
0:00:04.1]} 39. b3 {[%clk 0:00:11.8]} 39... Nxb3 {[%clk 0:00:03]} 40. Rb1 {[%clk
0:00:11.4]} 40... Nc5 {[%clk 0:00:03]} 41. Rxb4 {[%clk 0:00:10.8]} 41... Nd3
{[%clk 0:00:02.9]} 42. Rb8+ {[%clk 0:00:10.5]} 42... Ke7 {[%clk 0:00:02.7]} 43.
Ra8 {[%clk 0:00:10.7]} 43... Bd4 {[%clk 0:00:01.5]} 44. Rxa7+ {[%clk 0:00:10.1]}
44... Kf6 {[%clk 0:00:01.9]} 45. Rxa6+ {[%clk 0:00:10]} 1-0

[Event "Betsys MČR v online bleskovém šachu 2021"]
[Site "Chess.com"]
[Date "2021.04.17"]
[Round "10"]
[White "Rognort"]
[Black "Klapuch05"]
[Result "1-0"]
[WhiteElo "1791"]
[BlackElo "1557"]
[TimeControl "180+1"]
[EndTime "10:41:15 PDT"]
[Termination "Uživatel Rognort zvítězil matem"]

1. e4 {[%clk 0:03:00.9]} 1... c5 {[%clk 0:02:58.9]} 2. Nf3 {[%clk 0:02:59.2]}
2... d6 {[%clk 0:02:58.5]} 3. d4 {[%clk 0:02:59.6]} 3... cxd4 {[%clk 0:02:46.4]}
4. Nxd4 {[%clk 0:02:57.5]} 4... Nf6 {[%clk 0:02:47.3]} 5. Nc3 {[%clk 0:02:57.1]}
5... g6 {[%clk 0:02:47.7]} 6. Be3 {[%clk 0:02:55.5]} 6... Bg7 {[%clk 0:02:48.2]}
7. Qd2 {[%clk 0:02:55.9]} 7... O-O {[%clk 0:02:48.2]} 8. O-O-O {[%clk
0:02:56.3]} 8... Nc6 {[%clk 0:02:46.9]} 9. f3 {[%clk 0:02:55.8]} 9... a6 {[%clk
0:02:46.1]} 10. g4 {[%clk 0:02:55.6]} 10... Ne5 {[%clk 0:02:41.5]} 11. h4 {[%clk
0:02:45.3]} 11... h5 {[%clk 0:02:40.9]} 12. Be2 {[%clk 0:02:11.2]} 12... hxg4
{[%clk 0:02:29.4]} 13. fxg4 {[%clk 0:02:12.1]} 13... Bxg4 {[%clk 0:02:28.9]} 14.
Bxg4 {[%clk 0:02:11.1]} 14... Nexg4 {[%clk 0:02:28.8]} 15. Rdg1 {[%clk
0:02:11.3]} 15... Nxe3 {[%clk 0:02:28.7]} 16. Qxe3 {[%clk 0:02:11.8]} 16... Nh5
{[%clk 0:02:29.1]} 17. Nf3 {[%clk 0:01:59.4]} 17... e6 {[%clk 0:02:25.5]} 18.
Kb1 {[%clk 0:01:55]} 18... Qf6 {[%clk 0:02:19.1]} 19. Ng5 {[%clk 0:01:42.7]}
19... Rac8 {[%clk 0:02:07.1]} 20. Rf1 {[%clk 0:01:37.6]} 20... Qd4 {[%clk
0:01:56.9]} 21. Qxd4 {[%clk 0:01:05.5]} 21... Bxd4 {[%clk 0:01:55.8]} 22. Ne2
{[%clk 0:01:01.2]} 22... Bg7 {[%clk 0:01:48.6]} 23. c3 {[%clk 0:01:00.4]} 23...
Rc5 {[%clk 0:01:21]} 24. Rf3 {[%clk 0:00:58.8]} 24... Bh6 {[%clk 0:01:13.7]} 25.
Rg1 {[%clk 0:00:45.1]} 25... Bxg5 {[%clk 0:01:04.4]} 26. hxg5 {[%clk 0:00:43.2]}
26... Kg7 {[%clk 0:01:02.4]} 27. Nd4 {[%clk 0:00:27]} 27... Re5 {[%clk
0:00:50.7]} 28. Rg4 {[%clk 0:00:26.7]} 28... Rh8 {[%clk 0:00:49.4]} 29. Rf1
{[%clk 0:00:18.4]} 29... d5 {[%clk 0:00:44.4]} 30. exd5 {[%clk 0:00:16.8]} 30...
Rxd5 {[%clk 0:00:43.8]} 31. Kc2 {[%clk 0:00:16.2]} 31... Kg8 {[%clk 0:00:35.1]}
32. c4 {[%clk 0:00:13.1]} 32... Rc5 {[%clk 0:00:31]} 33. Kc3 {[%clk 0:00:12.8]}
33... Ng7 {[%clk 0:00:30]} 34. b4 {[%clk 0:00:11.9]} 34... Rh3+ {[%clk
0:00:28.4]} 35. Nf3 {[%clk 0:00:09.6]} 35... Rf5 {[%clk 0:00:27.1]} 36. Kd4
{[%clk 0:00:07.4]} 36... Rfxf3 {[%clk 0:00:26.5]} 37. Rxf3 {[%clk 0:00:07.5]}
37... Rxf3 {[%clk 0:00:27.4]} 38. Kc5 {[%clk 0:00:08.2]} 38... Ra3 {[%clk
0:00:26.1]} 39. Kb6 {[%clk 0:00:07.9]} 39... Rxa2 {[%clk 0:00:25.9]} 40. Kxb7
{[%clk 0:00:08.4]} 40... Nf5 {[%clk 0:00:22.8]} 41. c5 {[%clk 0:00:08.1]} 41...
Rb2 {[%clk 0:00:18.8]} 42. c6 {[%clk 0:00:08]} 42... Rxb4+ {[%clk 0:00:18.7]}
43. Rxb4 {[%clk 0:00:07.7]} 43... Nd6+ {[%clk 0:00:17.9]} 44. Kc7 {[%clk
0:00:05.9]} 44... Nb5+ {[%clk 0:00:18.1]} 45. Rxb5 {[%clk 0:00:05.9]} 45... axb5
{[%clk 0:00:18.4]} 46. Kd7 {[%clk 0:00:06.5]} 46... b4 {[%clk 0:00:19.3]} 47. c7
{[%clk 0:00:07.2]} 47... b3 {[%clk 0:00:20.2]} 48. c8=Q+ {[%clk 0:00:07.8]}
48... Kg7 {[%clk 0:00:20]} 49. Qc3+ {[%clk 0:00:08.5]} 49... e5 {[%clk
0:00:20.6]} 50. Qxb3 {[%clk 0:00:09.4]} 50... e4 {[%clk 0:00:21.1]} 51. Qc3+
{[%clk 0:00:09.4]} 51... f6 {[%clk 0:00:21]} 52. Qxf6+ {[%clk 0:00:09.7]} 52...
Kh7 {[%clk 0:00:21.1]} 53. Ke7 {[%clk 0:00:10]} 53... e3 {[%clk 0:00:21.1]} 54.
Kf7 {[%clk 0:00:10.6]} 54... e2 {[%clk 0:00:21.3]} 55. Qg7# {[%clk 0:00:11.5]}
1-0

[Event "Betsys MČR v online bleskovém šachu 2021"]
[Site "Chess.com"]
[Date "2021.04.17"]
[Round "10"]
[White "Bancroft"]
[Black "Rubinus"]
[Result "1/2-1/2"]
[WhiteElo "1927"]
[BlackElo "2153"]
[TimeControl "180+1"]
[EndTime "10:41:16 PDT"]
[Termination "Remíza opakováním pozice"]

1. d4 {[%clk 0:03:00.9]} 1... d5 {[%clk 0:02:56.9]} 2. c4 {[%clk 0:03:00.4]}
2... Nc6 {[%clk 0:02:56.7]} 3. Nc3 {[%clk 0:02:59.2]} 3... e5 {[%clk 0:02:55.9]}
4. cxd5 {[%clk 0:02:52.5]} 4... Nxd4 {[%clk 0:02:55.2]} 5. e3 {[%clk 0:02:48.1]}
5... Nf5 {[%clk 0:02:54.9]} 6. Nf3 {[%clk 0:02:38.8]} 6... Bd6 {[%clk
0:02:53.1]} 7. Bb5+ {[%clk 0:02:36.4]} 7... Bd7 {[%clk 0:02:51.1]} 8. O-O {[%clk
0:02:23.1]} 8... Bxb5 {[%clk 0:02:40.9]} 9. Nxb5 {[%clk 0:02:22.8]} 9... a6
{[%clk 0:02:34.7]} 10. Nxd6+ {[%clk 0:02:16.6]} 10... cxd6 {[%clk 0:02:25.1]}
11. e4 {[%clk 0:02:16.6]} 11... Nfe7 {[%clk 0:02:22.2]} 12. Bg5 {[%clk
0:02:09.9]} 12... Qd7 {[%clk 0:02:18.4]} 13. Nh4 {[%clk 0:01:59.7]} 13... h6
{[%clk 0:02:15.6]} 14. Be3 {[%clk 0:01:57.7]} 14... Nf6 {[%clk 0:02:13.2]} 15.
Rc1 {[%clk 0:01:48.4]} 15... O-O {[%clk 0:02:09.8]} 16. Qd3 {[%clk 0:01:46.2]}
16... Rac8 {[%clk 0:02:06.9]} 17. Rxc8 {[%clk 0:01:41.2]} 17... Rxc8 {[%clk
0:02:05.9]} 18. Rc1 {[%clk 0:01:40.6]} 18... Rxc1+ {[%clk 0:02:02]} 19. Bxc1
{[%clk 0:01:41.5]} 19... Qc8 {[%clk 0:02:01.4]} 20. Be3 {[%clk 0:01:34.9]} 20...
Ng4 {[%clk 0:01:56.3]} 21. h3 {[%clk 0:01:24.4]} 21... Nxe3 {[%clk 0:01:44.8]}
22. Qxe3 {[%clk 0:01:25.3]} 22... Qc7 {[%clk 0:01:34.9]} 23. Qb3 {[%clk
0:01:10.4]} 23... Qc1+ {[%clk 0:01:27.9]} 24. Kh2 {[%clk 0:01:09.7]} 24... Qf4+
{[%clk 0:01:27.2]} 25. g3 {[%clk 0:00:50]} 25... Qxf2+ {[%clk 0:01:22.3]} 26.
Ng2 {[%clk 0:00:49.1]} 26... Qa7 {[%clk 0:01:15.7]} 27. Qb4 {[%clk 0:00:42.6]}
27... Qb8 {[%clk 0:01:15.4]} 28. Ne3 {[%clk 0:00:37.9]} 28... Qc7 {[%clk
0:01:12.9]} 29. Nc4 {[%clk 0:00:35.8]} 29... Nc8 {[%clk 0:01:12.4]} 30. a4
{[%clk 0:00:33.5]} 30... f6 {[%clk 0:01:05.1]} 31. a5 {[%clk 0:00:33.2]} 31...
Kf7 {[%clk 0:01:04.4]} 32. h4 {[%clk 0:00:32.6]} 32... Ke8 {[%clk 0:01:02]} 33.
Qa4+ {[%clk 0:00:27.4]} 33... Qd7 {[%clk 0:00:59.5]} 34. Qb4 {[%clk 0:00:26.5]}
34... Qb5 {[%clk 0:00:55.4]} 35. Nxd6+ {[%clk 0:00:25.7]} 35... Nxd6 {[%clk
0:00:51]} 36. Qxd6 {[%clk 0:00:26.6]} 36... Qe2+ {[%clk 0:00:41]} 37. Kh3 {[%clk
0:00:25.6]} 37... Qf1+ {[%clk 0:00:40.7]} 38. Kg4 {[%clk 0:00:21.2]} 38... h5+
{[%clk 0:00:33.9]} 39. Kxh5 {[%clk 0:00:20]} 39... Qe2+ {[%clk 0:00:25.3]} 40.
g4 {[%clk 0:00:15.5]} 40... Qxe4 {[%clk 0:00:21]} 41. Qe6+ {[%clk 0:00:15.6]}
41... Kf8 {[%clk 0:00:20.9]} 42. g5 {[%clk 0:00:11.8]} 42... Qh7+ {[%clk
0:00:13.5]} 43. Kg4 {[%clk 0:00:11.9]} 43... Qe4+ {[%clk 0:00:09.2]} 44. Kh5
{[%clk 0:00:12.2]} 44... Qf3+ {[%clk 0:00:07.3]} 45. Kg6 {[%clk 0:00:10.6]}
45... Qd3+ {[%clk 0:00:06.9]} 46. Kh5 {[%clk 0:00:10.1]} 46... Qh7+ {[%clk
0:00:06]} 47. Kg4 {[%clk 0:00:10.2]} 47... Qe4+ {[%clk 0:00:06]} 48. Kh5 {[%clk
0:00:08.8]} 1/2-1/2

[Event "Betsys MČR v online bleskovém šachu 2021"]
[Site "Chess.com"]
[Date "2021.04.17"]
[Round "10"]
[White "MaTpAt113"]
[Black "Simaril76"]
[Result "1-0"]
[WhiteElo "871"]
[BlackElo "714"]
[TimeControl "180+1"]
[EndTime "10:41:16 PDT"]
[Termination "Uživatel MaTpAt113 zvítězil na čas"]

1. e4 {[%clk 0:03:00.9]} 1... c5 {[%clk 0:02:58.8]} 2. Nf3 {[%clk 0:03:01]} 2...
Nc6 {[%clk 0:02:58.4]} 3. d4 {[%clk 0:03:01]} 3... g6 {[%clk 0:02:55.2]} 4. dxc5
{[%clk 0:03:00.4]} 4... Bg7 {[%clk 0:02:53.7]} 5. Bc4 {[%clk 0:03:00.6]} 5...
Qa5+ {[%clk 0:02:52.4]} 6. Nc3 {[%clk 0:02:58.4]} 6... Qxc5 {[%clk 0:02:49.5]}
7. Bd3 {[%clk 0:02:41.4]} 7... Nf6 {[%clk 0:02:44.7]} 8. O-O {[%clk 0:02:39]}
8... e6 {[%clk 0:02:42.4]} 9. Bg5 {[%clk 0:02:33.6]} 9... d5 {[%clk 0:02:39]}
10. exd5 {[%clk 0:02:26.2]} 10... exd5 {[%clk 0:02:37.7]} 11. Re1+ {[%clk
0:02:25.3]} 11... Ne7 {[%clk 0:02:32]} 12. Na4 {[%clk 0:02:19.4]} 12... Qc7
{[%clk 0:02:20.5]} 13. Bb5+ {[%clk 0:02:11.7]} 13... Bd7 {[%clk 0:02:15.9]} 14.
Bxd7+ {[%clk 0:02:10.1]} 14... Qxd7 {[%clk 0:02:15.3]} 15. Nc5 {[%clk
0:02:08.7]} 15... Qc6 {[%clk 0:02:11.3]} 16. Nd3 {[%clk 0:01:55.2]} 16... O-O
{[%clk 0:02:08.9]} 17. Rxe7 {[%clk 0:01:52.5]} 17... Rae8 {[%clk 0:01:50.2]} 18.
Bxf6 {[%clk 0:01:39]} 18... Bxf6 {[%clk 0:01:46]} 19. Rxe8 {[%clk 0:01:32.4]}
19... Rxe8 {[%clk 0:01:45.2]} 20. Qd2 {[%clk 0:01:31.1]} 20... Bxb2 {[%clk
0:01:36.4]} 21. Rb1 {[%clk 0:01:29.1]} 21... Bc3 {[%clk 0:01:32.7]} 22. Qe3
{[%clk 0:01:16.7]} 22... Bg7 {[%clk 0:01:19.4]} 23. Qc5 {[%clk 0:01:10]} 23...
Qc8 {[%clk 0:01:11.4]} 24. Qxc8 {[%clk 0:01:06.4]} 24... Rxc8 {[%clk 0:01:10.2]}
25. Nde5 {[%clk 0:01:03]} 25... Rxc2 {[%clk 0:01:06.2]} 26. h3 {[%clk
0:00:55.7]} 26... b6 {[%clk 0:01:04.4]} 27. Nd3 {[%clk 0:00:46.6]} 27... Rxa2
{[%clk 0:01:03.2]} 28. Nb4 {[%clk 0:00:44.9]} 28... Ra5 {[%clk 0:00:54.9]} 29.
Nc6 {[%clk 0:00:44]} 29... Ra6 {[%clk 0:00:49.7]} 30. Nb4 {[%clk 0:00:41.2]}
30... Ra2 {[%clk 0:00:43.8]} 31. Nxd5 {[%clk 0:00:39.5]} 31... Ra5 {[%clk
0:00:41.3]} 32. Ne7+ {[%clk 0:00:31.4]} 32... Kf8 {[%clk 0:00:39.4]} 33. Nc6
{[%clk 0:00:30.7]} 33... Ra6 {[%clk 0:00:35.1]} 34. Nb4 {[%clk 0:00:29.2]} 34...
Ra3 {[%clk 0:00:33.1]} 35. Nc2 {[%clk 0:00:22.6]} 35... Ra4 {[%clk 0:00:30.5]}
36. Rb4 {[%clk 0:00:20.2]} 36... Ra2 {[%clk 0:00:24.7]} 37. Nfd4 {[%clk
0:00:19.4]} 37... Bxd4 {[%clk 0:00:18.9]} 38. Nxd4 {[%clk 0:00:18.4]} 38... Rd2
{[%clk 0:00:17.5]} 39. Nc6 {[%clk 0:00:16.8]} 39... a5 {[%clk 0:00:15]} 40. Rxb6
{[%clk 0:00:15.1]} 40... a4 {[%clk 0:00:11.7]} 41. Ra6 {[%clk 0:00:15.1]} 41...
Ra2 {[%clk 0:00:10.1]} 42. Nb4 {[%clk 0:00:14.2]} 42... Ra3 {[%clk 0:00:08.1]}
43. Nc2 {[%clk 0:00:13.5]} 43... Ra2 {[%clk 0:00:07.5]} 44. Nd4 {[%clk
0:00:13.1]} 44... a3 {[%clk 0:00:06.4]} 45. Nb5 {[%clk 0:00:11.4]} 45... Ke7
{[%clk 0:00:02.6]} 46. Rxa3 {[%clk 0:00:10.1]} 1-0

[Event "Betsys MČR v online bleskovém šachu 2021"]
[Site "Chess.com"]
[Date "2021.04.17"]
[Round "10"]
[White "vaclavbelaska"]
[Black "malviny"]
[Result "0-1"]
[WhiteElo "1377"]
[BlackElo "1182"]
[TimeControl "180+1"]
[EndTime "10:41:17 PDT"]
[Termination "Uživatel malviny zvítězil na čas"]

1. d4 {[%clk 0:02:55.9]} 1... d5 {[%clk 0:02:59.1]} 2. c4 {[%clk 0:02:53.5]}
2... e6 {[%clk 0:02:58.4]} 3. Nc3 {[%clk 0:02:51.1]} 3... c6 {[%clk 0:02:58.6]}
4. Nf3 {[%clk 0:02:45.8]} 4... Nf6 {[%clk 0:02:58.2]} 5. Bg5 {[%clk 0:02:42.8]}
5... Be7 {[%clk 0:02:57.7]} 6. e3 {[%clk 0:02:38.7]} 6... O-O {[%clk 0:02:54.8]}
7. cxd5 {[%clk 0:02:33]} 7... Nxd5 {[%clk 0:02:52.2]} 8. Bxe7 {[%clk 0:02:26.2]}
8... Qxe7 {[%clk 0:02:50.3]} 9. Bd3 {[%clk 0:02:25.6]} 9... Nb4 {[%clk
0:02:46.2]} 10. a3 {[%clk 0:02:19.6]} 10... Nxd3+ {[%clk 0:02:45.4]} 11. Qxd3
{[%clk 0:02:18.6]} 11... b5 {[%clk 0:02:42.4]} 12. O-O {[%clk 0:02:12.8]} 12...
Nd7 {[%clk 0:02:42]} 13. Qe4 {[%clk 0:02:10.1]} 13... Bb7 {[%clk 0:02:39.5]} 14.
Qh4 {[%clk 0:02:06.8]} 14... Qxh4 {[%clk 0:02:37.4]} 15. Nxh4 {[%clk 0:02:03.2]}
15... c5 {[%clk 0:02:36.7]} 16. dxc5 {[%clk 0:01:51.5]} 16... Nxc5 {[%clk
0:02:35.7]} 17. Rfd1 {[%clk 0:01:48.3]} 17... a6 {[%clk 0:02:33.6]} 18. b4
{[%clk 0:01:39.4]} 18... Ne4 {[%clk 0:02:27.5]} 19. Nxe4 {[%clk 0:01:35.2]}
19... Bxe4 {[%clk 0:02:26.6]} 20. g3 {[%clk 0:01:29.8]} 20... Rac8 {[%clk
0:02:16.2]} 21. Rd4 {[%clk 0:01:24.4]} 21... Bd5 {[%clk 0:02:15.1]} 22. Rad1
{[%clk 0:01:20.3]} 22... f6 {[%clk 0:02:07.2]} 23. Ng2 {[%clk 0:01:14.3]} 23...
Rfd8 {[%clk 0:02:06.1]} 24. Nf4 {[%clk 0:01:10]} 24... e5 {[%clk 0:01:42.5]} 25.
Rxd5 {[%clk 0:01:03.5]} 25... Rxd5 {[%clk 0:01:36.2]} 26. Nxd5 {[%clk
0:01:00.9]} 26... Kf7 {[%clk 0:01:32]} 27. Nb6 {[%clk 0:00:49.5]} 27... Rc6
{[%clk 0:01:28.2]} 28. Nd5 {[%clk 0:00:38.8]} 28... Rd6 {[%clk 0:01:25.2]} 29.
e4 {[%clk 0:00:36.2]} 29... Rd7 {[%clk 0:01:12.7]} 30. f3 {[%clk 0:00:31.9]}
30... Ke6 {[%clk 0:01:12.2]} 31. Kf2 {[%clk 0:00:29.8]} 31... f5 {[%clk
0:01:11.9]} 32. exf5+ {[%clk 0:00:20.5]} 32... Kxf5 {[%clk 0:01:10.2]} 33. Ne3+
{[%clk 0:00:15.7]} 33... Ke6 {[%clk 0:01:08.3]} 34. Rxd7 {[%clk 0:00:15.1]}
34... Kxd7 {[%clk 0:01:08.5]} 35. Ke2 {[%clk 0:00:13]} 35... Kd6 {[%clk
0:01:08]} 36. Kd3 {[%clk 0:00:12.4]} 36... Ke6 {[%clk 0:01:06.3]} 37. Ng4 {[%clk
0:00:10.9]} 37... h5 {[%clk 0:01:03.2]} 38. Ke4 {[%clk 0:00:10.6]} 38... hxg4
{[%clk 0:01:02.4]} 39. fxg4 {[%clk 0:00:09.9]} 39... g5 {[%clk 0:00:57.5]} 40.
h4 {[%clk 0:00:07.3]} 40... gxh4 {[%clk 0:00:57]} 41. gxh4 {[%clk 0:00:07]}
41... Kf6 {[%clk 0:00:56.4]} 42. h5 {[%clk 0:00:03.5]} 42... Ke6 {[%clk
0:00:55]} 43. g5 {[%clk 0:00:02.6]} 43... Kd6 {[%clk 0:00:49.4]} 44. h6 {[%clk
0:00:02.9]} 44... Ke7 {[%clk 0:00:47.3]} 45. g6 {[%clk 0:00:03.6]} 45... Kf6
{[%clk 0:00:46.9]} 46. h7 {[%clk 0:00:04.1]} 46... Kxg6 {[%clk 0:00:47]} 47.
h8=Q {[%clk 0:00:03.2]} 47... Kg5 {[%clk 0:00:46.4]} 48. Qxe5+ {[%clk
0:00:03.2]} 48... Kg4 {[%clk 0:00:46]} 49. Qd6 {[%clk 0:00:03.7]} 49... Kg5
{[%clk 0:00:41.2]} 50. Qd3 {[%clk 0:00:02.8]} 50... Kf6 {[%clk 0:00:39.1]} 51.
Qf3+ {[%clk 0:00:01.7]} 51... Ke6 {[%clk 0:00:38.7]} 0-1

[Event "Betsys MČR v online bleskovém šachu 2021"]
[Site "Chess.com"]
[Date "2021.04.17"]
[Round "10"]
[White "Joanna23W"]
[Black "VitaRasik"]
[Result "0-1"]
[WhiteElo "2672"]
[BlackElo "2632"]
[TimeControl "180+1"]
[EndTime "10:41:19 PDT"]
[Termination "Uživatel VitaRasik zvítězil na čas"]

1. e4 {[%clk 0:03:00.9]} 1... d6 {[%clk 0:03:00]} 2. d4 {[%clk 0:03:00.5]} 2...
g6 {[%clk 0:03:00.3]} 3. Nf3 {[%clk 0:03:00.5]} 3... Nf6 {[%clk 0:02:58.7]} 4.
Nc3 {[%clk 0:02:57.1]} 4... Bg7 {[%clk 0:02:58.8]} 5. h3 {[%clk 0:02:48.7]} 5...
O-O {[%clk 0:02:58.2]} 6. Be3 {[%clk 0:02:46.9]} 6... b6 {[%clk 0:02:58.3]} 7.
Qd2 {[%clk 0:02:46.1]} 7... Bb7 {[%clk 0:02:58.4]} 8. Bd3 {[%clk 0:02:46.3]}
8... e6 {[%clk 0:02:58.3]} 9. Bh6 {[%clk 0:02:44.7]} 9... c5 {[%clk 0:02:58.2]}
10. Bxg7 {[%clk 0:02:44.3]} 10... Kxg7 {[%clk 0:02:57.5]} 11. O-O {[%clk
0:02:41.3]} 11... cxd4 {[%clk 0:02:55.9]} 12. Nxd4 {[%clk 0:02:40.9]} 12... Nc6
{[%clk 0:02:54.2]} 13. Nxc6 {[%clk 0:02:35.3]} 13... Bxc6 {[%clk 0:02:53.8]} 14.
Rad1 {[%clk 0:02:35.2]} 14... a6 {[%clk 0:02:38]} 15. Qe3 {[%clk 0:02:30.3]}
15... Qc7 {[%clk 0:02:33.8]} 16. f4 {[%clk 0:02:26.7]} 16... b5 {[%clk
0:02:24.5]} 17. a3 {[%clk 0:02:26.2]} 17... Qa7 {[%clk 0:02:17.8]} 18. Qxa7
{[%clk 0:02:23]} 18... Rxa7 {[%clk 0:02:17.8]} 19. Rfe1 {[%clk 0:02:07.1]} 19...
Rd8 {[%clk 0:02:03.6]} 20. Bf1 {[%clk 0:01:53]} 20... Rad7 {[%clk 0:02:01.5]}
21. Kf2 {[%clk 0:01:42.8]} 21... e5 {[%clk 0:01:54.9]} 22. g3 {[%clk 0:01:34.6]}
22... Re8 {[%clk 0:01:38.3]} 23. f5 {[%clk 0:00:50.5]} 23... Kf8 {[%clk
0:01:05.3]} 24. g4 {[%clk 0:00:49.7]} 24... g5 {[%clk 0:01:05.2]} 25. Bg2 {[%clk
0:00:39.3]} 25... Ke7 {[%clk 0:01:05]} 26. Na2 {[%clk 0:00:38.5]} 26... h5
{[%clk 0:00:59.5]} 27. Kg3 {[%clk 0:00:37.3]} 27... hxg4 {[%clk 0:00:55.8]} 28.
hxg4 {[%clk 0:00:37.2]} 28... Rh8 {[%clk 0:00:55.7]} 29. Nb4 {[%clk 0:00:37.3]}
29... Bb7 {[%clk 0:00:54.9]} 30. Bf3 {[%clk 0:00:27.8]} 30... Rdd8 {[%clk
0:00:42.5]} 31. c3 {[%clk 0:00:27.7]} 31... Rh4 {[%clk 0:00:41.6]} 32. a4 {[%clk
0:00:24.3]} 32... bxa4 {[%clk 0:00:32.8]} 33. Nd5+ {[%clk 0:00:09.5]} 33... Bxd5
{[%clk 0:00:31]} 34. exd5 {[%clk 0:00:09.5]} 34... Rdh8 {[%clk 0:00:30.2]} 35.
Ra1 {[%clk 0:00:09.5]} 35... Rh3+ {[%clk 0:00:29.8]} 36. Kf2 {[%clk 0:00:09.7]}
36... Rh2+ {[%clk 0:00:29.9]} 37. Ke3 {[%clk 0:00:10]} 37... R8h3 {[%clk
0:00:28.1]} 38. Rxa4 {[%clk 0:00:09.3]} 38... e4 {[%clk 0:00:17.6]} 39. Rxe4+
{[%clk 0:00:06]} 39... Nxe4 {[%clk 0:00:17.6]} 40. Kxe4 {[%clk 0:00:06.2]} 40...
Rxb2 {[%clk 0:00:16.4]} 41. Kd4+ {[%clk 0:00:06.4]} 41... Kf6 {[%clk 0:00:16.2]}
42. Be2 {[%clk 0:00:05.7]} 42... a5 {[%clk 0:00:14]} 43. Bc4 {[%clk 0:00:04.4]}
43... Rd2+ {[%clk 0:00:13.7]} 44. Ke4 {[%clk 0:00:03.7]} 44... Rg3 {[%clk
0:00:12.5]} 45. Be2 {[%clk 0:00:03.3]} 45... Rxc3 {[%clk 0:00:10.7]} 46. Bf3
{[%clk 0:00:01]} 46... Rdd3 {[%clk 0:00:07.8]} 0-1